[Event "*** Titled Tuesday Blitz"]
[Site "Chess.com"]
[Date "2021.03.02"]
[Round "10"]
[White "anskam"]
[Black "suneebaker"]
[Result "0-1"]
[WhiteElo "1773"]
[BlackElo "2152"]
[TimeControl "180+1"]
[EndTime "11:58:49 PST"]
[Termination "suneebaker won on time"]

1. e4 {[%clk 0:03:00.9]} 1... e6 {[%clk 0:02:59.9]} 2. d4 {[%clk 0:03:00.1]}
2... d5 {[%clk 0:02:59.9]} 3. Nc3 {[%clk 0:02:59.3]} 3... Nf6 {[%clk 0:02:57.8]}
4. e5 {[%clk 0:02:59]} 4... Nfd7 {[%clk 0:02:57.5]} 5. f4 {[%clk 0:02:59]} 5...
c5 {[%clk 0:02:57.2]} 6. Nf3 {[%clk 0:02:58.8]} 6... Nc6 {[%clk 0:02:57]} 7. Be3
{[%clk 0:02:58.9]} 7... h6 {[%clk 0:02:47.1]} 8. Qd2 {[%clk 0:02:58.2]} 8... g5
{[%clk 0:02:45.4]} 9. O-O-O {[%clk 0:02:55.4]} 9... g4 {[%clk 0:02:43.2]} 10.
Ng1 {[%clk 0:02:51.5]} 10... cxd4 {[%clk 0:02:42.8]} 11. Bxd4 {[%clk 0:02:50.3]}
11... Nxd4 {[%clk 0:02:42.4]} 12. Qxd4 {[%clk 0:02:49.6]} 12... Bc5 {[%clk
0:02:41.9]} 13. Qd2 {[%clk 0:02:47.8]} 13... a6 {[%clk 0:02:28.6]} 14. Be2
{[%clk 0:02:46.1]} 14... b5 {[%clk 0:02:27.2]} 15. Bxg4 {[%clk 0:02:41.1]} 15...
Qb6 {[%clk 0:02:24]} 16. Kb1 {[%clk 0:02:39.6]} 16... Bb7 {[%clk 0:02:17.1]} 17.
Nf3 {[%clk 0:02:34.9]} 17... Be3 {[%clk 0:02:15.2]} 18. Qd3 {[%clk 0:02:26]}
18... Bxf4 {[%clk 0:02:04.2]} 19. Rde1 {[%clk 0:02:22.6]} 19... h5 {[%clk
0:01:55.8]} 20. Bh3 {[%clk 0:02:21.4]} 20... O-O-O {[%clk 0:01:51.3]} 21. Rhf1
{[%clk 0:02:11.8]} 21... Bh6 {[%clk 0:01:33.9]} 22. Nd4 {[%clk 0:02:03.5]} 22...
Nc5 {[%clk 0:01:29.3]} 23. Qd1 {[%clk 0:01:57]} 23... b4 {[%clk 0:01:21.2]} 24.
Nce2 {[%clk 0:01:55.4]} 24... Rd7 {[%clk 0:01:16.9]} 25. Rf3 {[%clk 0:01:43.8]}
25... Kb8 {[%clk 0:01:06.4]} 26. Ref1 {[%clk 0:01:42.2]} 26... Ne4 {[%clk
0:00:53.7]} 27. Rd3 {[%clk 0:01:26.5]} 27... Rc8 {[%clk 0:00:48]} 28. Nb3 {[%clk
0:01:18.5]} 28... a5 {[%clk 0:00:45.3]} 29. Ned4 {[%clk 0:01:15.5]} 29... Ba6
{[%clk 0:00:43.6]} 30. Rdf3 {[%clk 0:00:39.4]} 30... a4 {[%clk 0:00:40.8]} 31.
Rxf7 {[%clk 0:00:28.2]} 31... Rxf7 {[%clk 0:00:38.8]} 32. Rxf7 {[%clk
0:00:26.8]} 32... axb3 {[%clk 0:00:37.5]} 33. axb3 {[%clk 0:00:25.6]} 33... Nd2+
{[%clk 0:00:31.8]} 34. Kc1 {[%clk 0:00:17.7]} 34... Nxb3+ {[%clk 0:00:29.6]} 35.
Kb1 {[%clk 0:00:13.1]} 35... Nxd4 {[%clk 0:00:26.1]} 36. Rh7 {[%clk 0:00:08.9]}
36... Be3 {[%clk 0:00:20.5]} 37. Rxh5 {[%clk 0:00:05.7]} 37... Be2 {[%clk
0:00:18]} 38. Qe1 {[%clk 0:00:03.6]} 38... Bxh5 {[%clk 0:00:15.9]} 0-1

[Event "*** Titled Tuesday Blitz"]
[Site "Chess.com"]
[Date "2021.03.02"]
[Round "10"]
[White "woodhy"]
[Black "Abund"]
[Result "1-0"]
[WhiteElo "2478"]
[BlackElo "2640"]
[TimeControl "180+1"]
[EndTime "11:58:51 PST"]
[Termination "woodhy won by resignation"]

1. e4 {[%clk 0:03:00.9]} 1... c5 {[%clk 0:02:59.8]} 2. Nf3 {[%clk 0:02:59.2]}
2... d6 {[%clk 0:03:00.3]} 3. d4 {[%clk 0:02:59]} 3... cxd4 {[%clk 0:03:01.2]}
4. Nxd4 {[%clk 0:02:59.4]} 4... Nf6 {[%clk 0:03:01.7]} 5. f3 {[%clk 0:02:59.3]}
5... e5 {[%clk 0:03:01.4]} 6. Nb3 {[%clk 0:02:59.2]} 6... d5 {[%clk 0:02:57]} 7.
exd5 {[%clk 0:02:58.3]} 7... Qxd5 {[%clk 0:02:48]} 8. Bd3 {[%clk 0:02:56.9]}
8... Bb4+ {[%clk 0:02:37.4]} 9. N1d2 {[%clk 0:02:39.1]} 9... O-O {[%clk
0:02:25.6]} 10. O-O {[%clk 0:02:38.7]} 10... Nc6 {[%clk 0:02:24.4]} 11. Nc4
{[%clk 0:02:32.5]} 11... Be6 {[%clk 0:02:03.9]} 12. Qe2 {[%clk 0:02:26.1]} 12...
Bc5+ {[%clk 0:00:53.4]} 13. Nxc5 {[%clk 0:02:22.2]} 13... Qxc5+ {[%clk
0:00:53.3]} 14. Kh1 {[%clk 0:02:07.5]} 14... Nd4 {[%clk 0:00:52.4]} 15. Qxe5
{[%clk 0:01:45.7]} 15... Rac8 {[%clk 0:00:45.4]} 16. Qxc5 {[%clk 0:01:41.8]}
16... Rxc5 {[%clk 0:00:46.3]} 17. Be3 {[%clk 0:01:35]} 17... Rxc4 {[%clk
0:00:24.6]} 18. Bxc4 {[%clk 0:01:33]} 18... Nxc2 {[%clk 0:00:24.1]} 19. Bxe6
{[%clk 0:01:29.2]} 19... fxe6 {[%clk 0:00:16.5]} 20. Bxa7 {[%clk 0:01:25.6]}
20... Nxa1 {[%clk 0:00:14.5]} 21. Rxa1 {[%clk 0:01:26.5]} 21... Nd5 {[%clk
0:00:14.5]} 22. a3 {[%clk 0:01:15.1]} 22... Rc8 {[%clk 0:00:14.1]} 23. b4 {[%clk
0:01:11.7]} 23... b5 {[%clk 0:00:12]} 24. Bc5 {[%clk 0:01:07.8]} 24... Ra8
{[%clk 0:00:10.2]} 25. Kg1 {[%clk 0:01:07.8]} 25... Kf7 {[%clk 0:00:10.2]} 26.
Kf2 {[%clk 0:01:08]} 26... g5 {[%clk 0:00:07.9]} 27. g3 {[%clk 0:01:05.4]} 27...
Kf6 {[%clk 0:00:07.9]} 28. Ke2 {[%clk 0:01:04.9]} 28... Kf5 {[%clk 0:00:07.9]}
29. Kd3 {[%clk 0:01:04.7]} 29... h5 {[%clk 0:00:08.2]} 30. Kd4 {[%clk
0:01:03.9]} 30... Rd8 {[%clk 0:00:07.6]} 31. g4+ {[%clk 0:00:59.6]} 31... hxg4
{[%clk 0:00:03.2]} 32. fxg4+ {[%clk 0:01:00.5]} 32... Kxg4 {[%clk 0:00:02.4]}
33. Ke5 {[%clk 0:01:01.4]} 33... Nf4 {[%clk 0:00:02.8]} 34. Rg1+ {[%clk
0:00:56.9]} 34... Kh5 {[%clk 0:00:02.2]} 35. Rxg5+ {[%clk 0:00:56.4]} 35... Kxg5
{[%clk 0:00:01.8]} 36. Be7+ {[%clk 0:00:56.2]} 36... Kg4 {[%clk 0:00:02.1]} 37.
Bxd8 {[%clk 0:00:57.1]} 37... Nd3+ {[%clk 0:00:02.3]} 38. Kxe6 {[%clk
0:00:55.7]} 38... Ne1 {[%clk 0:00:02.1]} 39. Kd5 {[%clk 0:00:54.7]} 39... Nc2
{[%clk 0:00:02.5]} 40. Kc5 {[%clk 0:00:52.5]} 40... Nxa3 {[%clk 0:00:02.7]} 41.
Bc7 {[%clk 0:00:52.1]} 41... Kh3 {[%clk 0:00:02.6]} 42. Bd6 {[%clk 0:00:49.2]}
42... Kg4 {[%clk 0:00:02.1]} 43. Be5 {[%clk 0:00:49]} 43... Kh3 {[%clk
0:00:02.5]} 44. Bf4 {[%clk 0:00:48.9]} 44... Kg4 {[%clk 0:00:03]} 45. Bc1 {[%clk
0:00:48.8]} 45... Nc2 {[%clk 0:00:03.1]} 46. Kxb5 {[%clk 0:00:47.7]} 46... Kh3
{[%clk 0:00:03]} 47. Bf4 {[%clk 0:00:46.7]} 47... Nd4+ {[%clk 0:00:03.5]} 48.
Kc4 {[%clk 0:00:46.3]} 48... Ne2 {[%clk 0:00:03.8]} 49. Bg3 {[%clk 0:00:44.7]}
49... Kg4 {[%clk 0:00:04.4]} 50. b5 {[%clk 0:00:44.3]} 50... Kf5 {[%clk
0:00:05]} 51. b6 {[%clk 0:00:43.8]} 51... Ke6 {[%clk 0:00:05.9]} 52. b7 {[%clk
0:00:41.1]} 52... Nxg3 {[%clk 0:00:05]} 53. hxg3 {[%clk 0:00:40.8]} 1-0

[Event "*** Titled Tuesday Blitz"]
[Site "Chess.com"]
[Date "2021.03.02"]
[Round "10"]
[White "niki_2003"]
[Black "Treacherous_horse64"]
[Result "0-1"]
[WhiteElo "2028"]
[BlackElo "2545"]
[TimeControl "180+1"]
[EndTime "11:58:52 PST"]
[Termination "Treacherous_horse64 won by checkmate"]

1. e4 {[%clk 0:03:00.9]} 1... c6 {[%clk 0:02:55.3]} 2. d4 {[%clk 0:02:59.2]}
2... d5 {[%clk 0:02:56.2]} 3. exd5 {[%clk 0:02:58.8]} 3... cxd5 {[%clk
0:02:57.1]} 4. c3 {[%clk 0:02:57.4]} 4... Nc6 {[%clk 0:02:52.4]} 5. Nf3 {[%clk
0:02:56.7]} 5... Bg4 {[%clk 0:02:50]} 6. Be2 {[%clk 0:02:55.5]} 6... e6 {[%clk
0:02:49.3]} 7. h3 {[%clk 0:02:54.9]} 7... Bh5 {[%clk 0:02:49.2]} 8. O-O {[%clk
0:02:54.4]} 8... Nf6 {[%clk 0:02:48.4]} 9. Nh2 {[%clk 0:02:54]} 9... Bg6 {[%clk
0:02:47.7]} 10. Be3 {[%clk 0:02:53]} 10... Bd6 {[%clk 0:02:47.6]} 11. Nd2 {[%clk
0:02:52.2]} 11... O-O {[%clk 0:02:47.1]} 12. Ng4 {[%clk 0:02:52.4]} 12... Rc8
{[%clk 0:02:39.5]} 13. b4 {[%clk 0:02:42.9]} 13... Ne4 {[%clk 0:02:31.4]} 14.
Nxe4 {[%clk 0:02:39]} 14... Bxe4 {[%clk 0:02:31.2]} 15. f4 {[%clk 0:02:34.3]}
15... Ne7 {[%clk 0:02:30.9]} 16. Qd2 {[%clk 0:02:27.5]} 16... Qc7 {[%clk
0:02:30.1]} 17. Rac1 {[%clk 0:02:26.6]} 17... a6 {[%clk 0:02:28.7]} 18. Ne5
{[%clk 0:02:26]} 18... f6 {[%clk 0:02:27.6]} 19. Nf3 {[%clk 0:02:23.8]} 19...
Kh8 {[%clk 0:02:18.1]} 20. c4 {[%clk 0:02:12.8]} 20... Qb8 {[%clk 0:02:09]} 21.
c5 {[%clk 0:02:10.5]} 21... Bc7 {[%clk 0:02:08.8]} 22. g3 {[%clk 0:01:55.8]}
22... a5 {[%clk 0:02:02.6]} 23. a3 {[%clk 0:01:53.6]} 23... axb4 {[%clk
0:02:02.4]} 24. axb4 {[%clk 0:01:53.5]} 24... b6 {[%clk 0:02:03.3]} 25. Bd3
{[%clk 0:01:48.4]} 25... bxc5 {[%clk 0:02:01.4]} 26. bxc5 {[%clk 0:01:47.4]}
26... Nc6 {[%clk 0:01:56.3]} 27. Rb1 {[%clk 0:01:45.3]} 27... Qa7 {[%clk
0:01:52]} 28. Ra1 {[%clk 0:01:44.9]} 28... Ba5 {[%clk 0:01:51.2]} 29. Qe2 {[%clk
0:01:38]} 29... Qc7 {[%clk 0:01:50.7]} 30. Bxe4 {[%clk 0:01:37.2]} 30... dxe4
{[%clk 0:01:51.1]} 31. Nd2 {[%clk 0:01:37.5]} 31... f5 {[%clk 0:01:50.8]} 32.
Nc4 {[%clk 0:01:36.4]} 32... Bc3 {[%clk 0:01:50.7]} 33. Rad1 {[%clk 0:01:31.6]}
33... Rcd8 {[%clk 0:01:50.1]} 34. Nd6 {[%clk 0:01:27.1]} 34... Nxd4 {[%clk
0:01:47.3]} 35. Bxd4 {[%clk 0:01:26.3]} 35... Bxd4+ {[%clk 0:01:46.6]} 36. Rxd4
{[%clk 0:01:25.5]} 36... Qxc5 {[%clk 0:01:46.8]} 37. Qe3 {[%clk 0:01:23.6]}
37... Rxd6 {[%clk 0:01:46.3]} 38. Rfd1 {[%clk 0:01:23.8]} 38... Rfd8 {[%clk
0:01:46]} 39. Rxd6 {[%clk 0:01:06.5]} 39... Qxe3+ {[%clk 0:01:46.9]} 40. Kf1
{[%clk 0:01:05.5]} 40... Qf3+ {[%clk 0:01:45.2]} 41. Ke1 {[%clk 0:01:04.7]}
41... Qxg3+ {[%clk 0:01:45]} 42. Kf1 {[%clk 0:01:04.3]} 42... Qxh3+ {[%clk
0:01:45.1]} 43. Kg1 {[%clk 0:01:04.2]} 43... Qg4+ {[%clk 0:01:44.3]} 44. Kh1
{[%clk 0:01:03.9]} 44... Qxd1+ {[%clk 0:01:44.8]} 45. Rxd1 {[%clk 0:01:01.9]}
45... Rxd1+ {[%clk 0:01:45.7]} 46. Kg2 {[%clk 0:01:02.7]} 46... Rd3 {[%clk
0:01:46]} 47. Kf2 {[%clk 0:01:02.7]} 47... Rf3+ {[%clk 0:01:46.9]} 48. Ke2
{[%clk 0:01:02.8]} 48... Rxf4 {[%clk 0:01:47.8]} 49. Ke3 {[%clk 0:01:03]} 49...
Rf3+ {[%clk 0:01:48.7]} 50. Kd4 {[%clk 0:01:03.2]} 50... h5 {[%clk 0:01:49.6]}
51. Ke5 {[%clk 0:01:03.6]} 51... h4 {[%clk 0:01:49.6]} 52. Kxe6 {[%clk
0:01:04.5]} 52... g5 {[%clk 0:01:49.9]} 53. Kf7 {[%clk 0:01:05.4]} 53... g4
{[%clk 0:01:50.8]} 54. Kf6 {[%clk 0:01:05.5]} 54... h3 {[%clk 0:01:51.7]} 55.
Kg5 {[%clk 0:01:05.7]} 55... h2 {[%clk 0:01:52.6]} 56. Kh4 {[%clk 0:01:05.9]}
56... g3 {[%clk 0:01:53.5]} 57. Kh3 {[%clk 0:01:05.7]} 57... f4 {[%clk
0:01:52.2]} 58. Kg2 {[%clk 0:01:05.3]} 58... Ra3 {[%clk 0:01:52.3]} 59. Kh3
{[%clk 0:01:05.1]} 59... h1=N {[%clk 0:01:50.4]} 60. Kg2 {[%clk 0:01:04.9]}
60... Nf2 {[%clk 0:01:50.8]} 61. Kf1 {[%clk 0:01:04.2]} 61... Ng4 {[%clk
0:01:49.6]} 62. Kg2 {[%clk 0:01:03.4]} 62... Nf6 {[%clk 0:01:50.1]} 63. Kh3
{[%clk 0:01:03.7]} 63... Ra2 {[%clk 0:01:49.5]} 64. Kh4 {[%clk 0:01:03]} 64...
g2 {[%clk 0:01:49.9]} 65. Kh3 {[%clk 0:01:03.2]} 65... g1=N+ {[%clk 0:01:48.5]}
66. Kh4 {[%clk 0:01:04.1]} 66... f3 {[%clk 0:01:48.7]} 67. Kg3 {[%clk
0:01:03.3]} 67... f2 {[%clk 0:01:48.4]} 68. Kh4 {[%clk 0:01:04.2]} 68... f1=N
{[%clk 0:01:47.2]} 69. Kg5 {[%clk 0:01:03.2]} 69... Nd5 {[%clk 0:01:47.1]} 70.
Kg4 {[%clk 0:01:03.2]} 70... e3 {[%clk 0:01:47.1]} 71. Kf5 {[%clk 0:01:02.5]}
71... e2 {[%clk 0:01:47.4]} 72. Ke6 {[%clk 0:01:02.5]} 72... Nc3 {[%clk
0:01:47.2]} 73. Kf5 {[%clk 0:01:02.3]} 73... e1=N {[%clk 0:01:42.5]} 74. Kf4
{[%clk 0:01:02.1]} 74... Nd1 {[%clk 0:01:43.4]} 75. Kg4 {[%clk 0:01:00.5]} 75...
Ra4+ {[%clk 0:01:43.1]} 76. Kf5 {[%clk 0:00:59.1]} 76... Rf4+ {[%clk 0:01:43.5]}
77. Kxf4 {[%clk 0:00:59]} 77... Ne2+ {[%clk 0:01:43.3]} 78. Ke4 {[%clk
0:00:57.4]} 78... Nf2+ {[%clk 0:01:43.7]} 79. Kd5 {[%clk 0:00:54.8]} 79... Nd2
{[%clk 0:01:44.6]} 80. Kc5 {[%clk 0:00:53.6]} 80... Nc2 {[%clk 0:01:45.5]} 81.
Kb5 {[%clk 0:00:53.4]} 81... Nd3 {[%clk 0:01:46.4]} 82. Ka4 {[%clk 0:00:53.5]}
82... Ned4 {[%clk 0:01:46.9]} 83. Ka5 {[%clk 0:00:52.3]} 83... Nc4+ {[%clk
0:01:46.4]} 84. Ka6 {[%clk 0:00:52.6]} 84... Ndb4+ {[%clk 0:01:46.2]} 85. Ka7
{[%clk 0:00:52.8]} 85... N2e3 {[%clk 0:01:47.1]} 86. Ka8 {[%clk 0:00:52.9]}
86... Ned5 {[%clk 0:01:48]} 87. Ka7 {[%clk 0:00:53.1]} 87... Ndc6+ {[%clk
0:01:48.4]} 88. Kb7 {[%clk 0:00:52.4]} 88... N4a5+ {[%clk 0:01:46.6]} 89. Ka8
{[%clk 0:00:50.3]} 89... Nb6# {[%clk 0:01:45.8]} 0-1

[Event "*** Titled Tuesday Blitz"]
[Site "Chess.com"]
[Date "2021.03.02"]
[Round "10"]
[White "TeukkaSalama"]
[Black "Frogo47"]
[Result "0-1"]
[WhiteElo "2381"]
[BlackElo "2531"]
[TimeControl "180+1"]
[EndTime "11:58:54 PST"]
[Termination "Frogo47 won on time"]

1. d4 {[%clk 0:03:00.9]} 1... Nf6 {[%clk 0:02:59.4]} 2. Bg5 {[%clk 0:03:00.9]}
2... d5 {[%clk 0:02:58.6]} 3. Bxf6 {[%clk 0:03:00.8]} 3... exf6 {[%clk
0:02:58.7]} 4. e3 {[%clk 0:03:00.5]} 4... Bd6 {[%clk 0:02:59.2]} 5. g3 {[%clk
0:03:00.7]} 5... O-O {[%clk 0:02:58.5]} 6. Bg2 {[%clk 0:03:01.1]} 6... c6 {[%clk
0:02:59.1]} 7. Ne2 {[%clk 0:03:01.3]} 7... f5 {[%clk 0:02:59.2]} 8. O-O {[%clk
0:03:01.3]} 8... Be6 {[%clk 0:02:59.5]} 9. Nd2 {[%clk 0:03:01.7]} 9... Nd7
{[%clk 0:02:59.7]} 10. b3 {[%clk 0:03:02.2]} 10... Nf6 {[%clk 0:02:59.9]} 11. c4
{[%clk 0:03:02.4]} 11... h5 {[%clk 0:02:58.7]} 12. h4 {[%clk 0:03:02]} 12... Re8
{[%clk 0:02:57.3]} 13. Nc3 {[%clk 0:03:02]} 13... Qe7 {[%clk 0:02:47.4]} 14.
cxd5 {[%clk 0:03:01.8]} 14... cxd5 {[%clk 0:02:46.1]} 15. Qe2 {[%clk 0:02:51.9]}
15... Rad8 {[%clk 0:02:45.8]} 16. Rfc1 {[%clk 0:02:51.8]} 16... Ng4 {[%clk
0:02:44]} 17. a4 {[%clk 0:02:05.8]} 17... Bb8 {[%clk 0:02:36.7]} 18. Rc2 {[%clk
0:02:01.9]} 18... g5 {[%clk 0:02:36.2]} 19. hxg5 {[%clk 0:01:59.1]} 19... Qxg5
{[%clk 0:02:36.2]} 20. Rac1 {[%clk 0:01:55.2]} 20... Kh8 {[%clk 0:02:18.4]} 21.
Nf3 {[%clk 0:01:49.3]} 21... Qf6 {[%clk 0:02:10.9]} 22. Nh4 {[%clk 0:01:43.1]}
22... Rg8 {[%clk 0:02:09]} 23. Qf3 {[%clk 0:01:35.3]} 23... f4 {[%clk
0:01:53.8]} 24. exf4 {[%clk 0:01:26.6]} 24... Qxd4 {[%clk 0:01:46.9]} 25. Ne2
{[%clk 0:01:23.6]} 25... Qf6 {[%clk 0:01:37.4]} 26. Rd2 {[%clk 0:01:15.7]} 26...
a6 {[%clk 0:01:30.4]} 27. Nd4 {[%clk 0:01:08]} 27... Ba7 {[%clk 0:01:27.8]} 28.
Rcd1 {[%clk 0:01:08.2]} 28... Rc8 {[%clk 0:01:23.8]} 29. f5 {[%clk 0:00:55.3]}
29... Bd7 {[%clk 0:01:22.4]} 30. Qxd5 {[%clk 0:00:46.1]} 30... Rgd8 {[%clk
0:01:21.8]} 31. Qe4 {[%clk 0:00:31.4]} 31... Bc6 {[%clk 0:01:09.7]} 32. Nxc6
{[%clk 0:00:30.9]} 32... Bxf2+ {[%clk 0:01:02.5]} 33. Kh1 {[%clk 0:00:26.1]}
33... Rxd2 {[%clk 0:00:58.8]} 34. Rxd2 {[%clk 0:00:26.2]} 34... Bxg3 {[%clk
0:00:58.9]} 35. Nf3 {[%clk 0:00:18.1]} 35... Rxc6 {[%clk 0:00:41.3]} 36. Bh3
{[%clk 0:00:17.5]} 36... Nf2+ {[%clk 0:00:31.2]} 37. Rxf2 {[%clk 0:00:15.4]}
37... Bxf2 {[%clk 0:00:32.1]} 38. Qf4 {[%clk 0:00:10.1]} 38... Bb6 {[%clk
0:00:18.8]} 39. Ng5 {[%clk 0:00:08.2]} 39... Bc7 {[%clk 0:00:18.2]} 40. Qe3
{[%clk 0:00:05.4]} 40... Rc3 {[%clk 0:00:16.8]} 41. Qe8+ {[%clk 0:00:04.3]}
41... Kg7 {[%clk 0:00:17.2]} 42. Ne4 {[%clk 0:00:04.1]} 42... Rxh3+ {[%clk
0:00:15.4]} 43. Kg2 {[%clk 0:00:03.8]} 43... Qxf5 {[%clk 0:00:14.1]} 44. Qd7
{[%clk 0:00:01.9]} 44... Qxd7 {[%clk 0:00:13.7]} 0-1

[Event "*** Titled Tuesday Blitz"]
[Site "Chess.com"]
[Date "2021.03.02"]
[Round "10"]
[White "Korchmar_Vasiliy"]
[Black "ChristopherYoo"]
[Result "0-1"]
[WhiteElo "2661"]
[BlackElo "2893"]
[TimeControl "180+1"]
[EndTime "11:58:55 PST"]
[Termination "ChristopherYoo won by resignation"]

1. d4 {[%clk 0:03:00.9]} 1... Nf6 {[%clk 0:02:52.8]} 2. Nf3 {[%clk 0:03:01.3]}
2... e6 {[%clk 0:02:51.4]} 3. Bf4 {[%clk 0:03:01.7]} 3... Be7 {[%clk 0:02:50.5]}
4. h3 {[%clk 0:03:00.5]} 4... O-O {[%clk 0:02:49.9]} 5. e3 {[%clk 0:03:00.7]}
5... b6 {[%clk 0:02:47.3]} 6. Nbd2 {[%clk 0:03:00.7]} 6... Bb7 {[%clk
0:02:47.2]} 7. Bd3 {[%clk 0:02:59.5]} 7... d5 {[%clk 0:02:46.7]} 8. c3 {[%clk
0:02:58.5]} 8... Nbd7 {[%clk 0:02:47.2]} 9. Qb1 {[%clk 0:02:58.4]} 9... c5
{[%clk 0:02:45.7]} 10. O-O {[%clk 0:02:57.9]} 10... Re8 {[%clk 0:02:39.5]} 11.
a4 {[%clk 0:02:57.9]} 11... a6 {[%clk 0:02:38.6]} 12. Ne5 {[%clk 0:02:48.5]}
12... h6 {[%clk 0:02:09.4]} 13. b4 {[%clk 0:02:45.6]} 13... cxb4 {[%clk
0:02:06]} 14. cxb4 {[%clk 0:02:45.6]} 14... Nxe5 {[%clk 0:02:05.3]} 15. dxe5
{[%clk 0:02:41.8]} 15... Nd7 {[%clk 0:02:03.1]} 16. a5 {[%clk 0:02:26.2]} 16...
bxa5 {[%clk 0:01:58.2]} 17. bxa5 {[%clk 0:02:22.5]} 17... Nc5 {[%clk 0:01:56.2]}
18. Bc2 {[%clk 0:02:15.8]} 18... Rb8 {[%clk 0:01:53.6]} 19. Qd1 {[%clk
0:02:11.9]} 19... d4 {[%clk 0:01:35.4]} 20. Qg4 {[%clk 0:02:08.4]} 20... h5
{[%clk 0:00:55.8]} 21. Qxh5 {[%clk 0:02:05.7]} 21... d3 {[%clk 0:00:55.5]} 22.
Bd1 {[%clk 0:02:03.3]} 22... Ne4 {[%clk 0:00:55.2]} 23. Nxe4 {[%clk 0:01:54]}
23... Bxe4 {[%clk 0:00:56.1]} 24. Bf3 {[%clk 0:01:51.2]} 24... Bg6 {[%clk
0:00:51.3]} 25. Qg4 {[%clk 0:01:51.4]} 25... Bf5 {[%clk 0:00:51.9]} 26. Qg3
{[%clk 0:01:46.3]} 26... Bh4 {[%clk 0:00:47.4]} 27. Qh2 {[%clk 0:01:46.5]} 27...
Be7 {[%clk 0:00:45.5]} 28. Qg3 {[%clk 0:01:45.9]} 28... Bh4 {[%clk 0:00:45.3]}
29. Qh2 {[%clk 0:01:46.5]} 29... Be7 {[%clk 0:00:45.3]} 30. Rfd1 {[%clk
0:01:37.7]} 30... Bg6 {[%clk 0:00:35.2]} 31. Bc6 {[%clk 0:01:28.2]} 31... Rf8
{[%clk 0:00:34.7]} 32. Qg3 {[%clk 0:01:28.8]} 32... Qc7 {[%clk 0:00:28.3]} 33.
Qf3 {[%clk 0:01:26.7]} 33... Rfc8 {[%clk 0:00:27.2]} 34. Be4 {[%clk 0:01:25.9]}
34... Qc2 {[%clk 0:00:20.3]} 35. Rxd3 {[%clk 0:00:59.2]} 35... Bxe4 {[%clk
0:00:19.9]} 36. Qxe4 {[%clk 0:01:00.1]} 36... Rc4 {[%clk 0:00:19.8]} 37. Qxc4
{[%clk 0:00:37.5]} 37... Qxc4 {[%clk 0:00:19]} 38. Rd7 {[%clk 0:00:38.4]} 38...
Bb4 {[%clk 0:00:16.3]} 39. Rb1 {[%clk 0:00:35.9]} 39... Qc2 {[%clk 0:00:14]} 40.
Rbd1 {[%clk 0:00:33.2]} 40... Bxa5 {[%clk 0:00:13.5]} 41. Kh2 {[%clk 0:00:19.2]}
41... Qxf2 {[%clk 0:00:11.6]} 42. Bg3 {[%clk 0:00:19.8]} 42... Qf5 {[%clk
0:00:10.1]} 43. R1d4 {[%clk 0:00:18.9]} 43... Bc3 {[%clk 0:00:09.9]} 44. Rf4
{[%clk 0:00:19]} 44... Qg6 {[%clk 0:00:10.1]} 45. Rg4 {[%clk 0:00:19]} 45... Qh5
{[%clk 0:00:10.4]} 46. Rh4 {[%clk 0:00:18.5]} 46... Qg5 {[%clk 0:00:08.7]} 47.
Rg4 {[%clk 0:00:18.8]} 47... Qxe3 {[%clk 0:00:09]} 48. Bf4 {[%clk 0:00:10.9]}
48... Bxe5 {[%clk 0:00:08.9]} 0-1

[Event "*** Titled Tuesday Blitz"]
[Site "Chess.com"]
[Date "2021.03.02"]
[Round "10"]
[White "ruvat"]
[Black "Oligan22"]
[Result "1-0"]
[WhiteElo "2365"]
[BlackElo "2506"]
[TimeControl "180+1"]
[EndTime "11:58:56 PST"]
[Termination "ruvat won on time"]

1. d4 {[%clk 0:03:00.9]} 1... d5 {[%clk 0:03:00]} 2. c4 {[%clk 0:03:00.5]} 2...
dxc4 {[%clk 0:03:00.9]} 3. Nf3 {[%clk 0:03:00.4]} 3... Nf6 {[%clk 0:03:01.1]} 4.
Qa4+ {[%clk 0:03:00.4]} 4... Nbd7 {[%clk 0:02:45.4]} 5. Nc3 {[%clk 0:02:59.1]}
5... e6 {[%clk 0:02:38.2]} 6. e4 {[%clk 0:02:58.6]} 6... c6 {[%clk 0:02:26.3]}
7. Qxc4 {[%clk 0:02:57.5]} 7... Be7 {[%clk 0:02:20.4]} 8. Be2 {[%clk 0:02:49]}
8... O-O {[%clk 0:02:20]} 9. O-O {[%clk 0:02:48.2]} 9... a5 {[%clk 0:02:14.5]}
10. Bf4 {[%clk 0:02:43.2]} 10... Qb6 {[%clk 0:02:12.3]} 11. Rab1 {[%clk
0:02:29.9]} 11... Qb4 {[%clk 0:02:07.4]} 12. a3 {[%clk 0:02:13.6]} 12... Qxc4
{[%clk 0:02:04]} 13. Bxc4 {[%clk 0:02:14.5]} 13... a4 {[%clk 0:01:52]} 14. e5
{[%clk 0:02:10.3]} 14... Nd5 {[%clk 0:01:50.5]} 15. Nxd5 {[%clk 0:02:09.8]}
15... exd5 {[%clk 0:01:43.8]} 16. Bd3 {[%clk 0:02:09.8]} 16... Re8 {[%clk
0:01:38.6]} 17. Bd2 {[%clk 0:01:55.5]} 17... Nf8 {[%clk 0:01:36.3]} 18. h3
{[%clk 0:01:55.3]} 18... Ne6 {[%clk 0:01:32.4]} 19. Kh2 {[%clk 0:01:47.7]} 19...
Bd8 {[%clk 0:01:31.9]} 20. g3 {[%clk 0:01:44.3]} 20... Bb6 {[%clk 0:01:31.8]}
21. Be3 {[%clk 0:01:42.8]} 21... Bd7 {[%clk 0:01:29.6]} 22. Bc2 {[%clk
0:01:40.6]} 22... h6 {[%clk 0:01:18.3]} 23. Rbd1 {[%clk 0:01:40.3]} 23... Ra5
{[%clk 0:01:09.3]} 24. Nh4 {[%clk 0:01:38.2]} 24... Rb5 {[%clk 0:01:01.1]} 25.
Bxa4 {[%clk 0:01:26]} 25... Rxb2 {[%clk 0:01:00.6]} 26. Nf5 {[%clk 0:01:26]}
26... Ra8 {[%clk 0:00:57.5]} 27. Rb1 {[%clk 0:01:13]} 27... Rxb1 {[%clk
0:00:38.3]} 28. Rxb1 {[%clk 0:01:11.8]} 28... Bxd4 {[%clk 0:00:29.5]} 29. Nxd4
{[%clk 0:00:54.1]} 29... Rxa4 {[%clk 0:00:21.2]} 30. Nxe6 {[%clk 0:00:53.3]}
30... Bxe6 {[%clk 0:00:20.5]} 31. Rxb7 {[%clk 0:00:52]} 31... Rxa3 {[%clk
0:00:21.1]} 32. Rc7 {[%clk 0:00:50.2]} 32... Rc3 {[%clk 0:00:21.1]} 33. g4
{[%clk 0:00:35.6]} 33... Kh7 {[%clk 0:00:20]} 34. Kg2 {[%clk 0:00:31]} 34... Rc4
{[%clk 0:00:20.5]} 35. f4 {[%clk 0:00:25.5]} 35... d4 {[%clk 0:00:20.5]} 36. Bf2
{[%clk 0:00:23.2]} 36... Bd5+ {[%clk 0:00:19.8]} 37. Kf1 {[%clk 0:00:21.4]}
37... d3 {[%clk 0:00:17.8]} 38. Be3 {[%clk 0:00:17.1]} 38... g6 {[%clk
0:00:15.4]} 39. Ke1 {[%clk 0:00:16.8]} 39... Rc2 {[%clk 0:00:15.1]} 40. Bd2
{[%clk 0:00:15.5]} 40... Kg7 {[%clk 0:00:14.6]} 41. f5 {[%clk 0:00:13.4]} 41...
gxf5 {[%clk 0:00:14.7]} 42. gxf5 {[%clk 0:00:13.6]} 42... Be4 {[%clk 0:00:12.7]}
43. e6 {[%clk 0:00:12.8]} 43... Bxf5 {[%clk 0:00:05.8]} 44. e7 {[%clk
0:00:11.5]} 1-0